[Event "Titled Tuesday Blitz May 11 2021"]
[White "Aditya Mittal"]
[Black "Keymer, Vincent"]
[WhiteFideId "35042025"]
[BlackFideId "12940690"]
[WhiteElo "2171"]
[BlackElo "2474"]
[Result "1-0"]
[Round "10"]
[TimeControl "180+1"]
[Date "2021.05.11"]
[WhiteClock "0:00:29"]
[BlackClock "0:00:06"]

1. d4 {[%clk 0:03:00]}  Nf6 {[%clk 0:02:58]} 2. c4 {[%clk 0:03:01]}  e6 {[%clk 0:02:58]} 3. Nc3 {[%clk 0:03:01]}  Bb4 {[%clk 0:02:58]} 4. f3 {[%clk 0:03:02]}  c5 {[%clk 0:02:51]} 5. d5 {[%clk 0:03:02]}  b5 {[%clk 0:02:51]} 6. e4 {[%clk 0:03:01]}  d6 {[%clk 0:02:51]} 7. Bd3 {[%clk 0:03:00]}  bxc4 {[%clk 0:02:45]} 8. Bxc4 {[%clk 0:03:01]}  O-O {[%clk 0:02:42]} 9. Ne2 {[%clk 0:03:01]}  exd5 {[%clk 0:02:29]} 10. Bxd5 {[%clk 0:03:01]}  Nxd5 {[%clk 0:02:28]} 11. Qxd5 {[%clk 0:03:02]}  Qb6 {[%clk 0:02:23]} 12. Bg5 {[%clk 0:03:02]}  Be6 {[%clk 0:02:16]} 13. Qd2 {[%clk 0:03:02]}  Nc6 {[%clk 0:02:13]} 14. O-O {[%clk 0:03:00]}  Ne5 {[%clk 0:02:06]} 15. Rfd1 {[%clk 0:02:50]}  Rab8 {[%clk 0:01:54]} 16. Kh1 {[%clk 0:02:38]}  c4 {[%clk 0:01:40]} 17. Nf4 {[%clk 0:02:28]}  h6 {[%clk 0:01:27]} 18. Bh4 {[%clk 0:02:18]}  Bc5 {[%clk 0:01:20]} 19. Na4 {[%clk 0:02:05]}  Qb5 {[%clk 0:01:12]} 20. Nxc5 {[%clk 0:01:59]}  Qxc5 {[%clk 0:00:55]} 21. Be7 {[%clk 0:01:55]}  c3 {[%clk 0:00:34]} 22. Qxc3 {[%clk 0:01:27]}  Qxc3 {[%clk 0:00:33]} 23. bxc3 {[%clk 0:01:27]}  Rfc8 {[%clk 0:00:33]} 24. Bxd6 {[%clk 0:01:24]}  Rb5 {[%clk 0:00:33]} 25. a4 {[%clk 0:01:15]}  Ra5 {[%clk 0:00:33]} 26. Bb4 {[%clk 0:01:14]}  Ra6 {[%clk 0:00:31]} 27. Nd5 {[%clk 0:01:14]}  Bxd5 {[%clk 0:00:27]} 28. Rxd5 {[%clk 0:01:15]}  Nc4 {[%clk 0:00:25]} 29. a5 {[%clk 0:01:13]}  Rac6 {[%clk 0:00:23]} 30. Kg1 {[%clk 0:01:08]}  a6 {[%clk 0:00:20]} 31. Kf2 {[%clk 0:01:07]}  R8c7 {[%clk 0:00:17]} 32. Rad1 {[%clk 0:01:04]}  f6 {[%clk 0:00:17]} 33. Rd7 {[%clk 0:01:02]}  Rc8 {[%clk 0:00:15]} 34. Rd8+ {[%clk 0:01:02]}  Kh7 {[%clk 0:00:15]} 35. Rxc8 {[%clk 0:01:01]}  Rxc8 {[%clk 0:00:15]} 36. Rd7 {[%clk 0:01:01]}  Kg6 {[%clk 0:00:14]} 37. Ke2 {[%clk 0:00:59]}  f5 {[%clk 0:00:12]} 38. exf5+ {[%clk 0:00:54]}  Kf6 {[%clk 0:00:12]} 39. g4 {[%clk 0:00:51]}  h5 {[%clk 0:00:11]} 40. h3 {[%clk 0:00:43]}  g6 {[%clk 0:00:08]} 41. fxg6 {[%clk 0:00:41]}  Kxg6 {[%clk 0:00:09]} 42. Rd5 {[%clk 0:00:40]}  h4 {[%clk 0:00:08]} 43. f4 {[%clk 0:00:38]}  Re8+ {[%clk 0:00:07]} 44. Kf2 {[%clk 0:00:39]}  Ne3 {[%clk 0:00:05]} 45. Re5 {[%clk 0:00:34]}  Rxe5 {[%clk 0:00:05]} 46. fxe5 {[%clk 0:00:35]}  Nd5 {[%clk 0:00:06]} 47. Kf3 {[%clk 0:00:34]}  Kf7 {[%clk 0:00:06]} 48. Ke4 {[%clk 0:00:32]}  Ke6 {[%clk 0:00:06]} 49. g5 {[%clk 0:00:32]}  Nc7 {[%clk 0:00:06]} 50. g6 {[%clk 0:00:31]}  Ne8 {[%clk 0:00:06]} 51. Bf8 {[%clk 0:00:31]}  Nc7 {[%clk 0:00:05]} 52. g7 {[%clk 0:00:31]}  Kf7 {[%clk 0:00:05]} 53. c4 {[%clk 0:00:29]}  Ne6 {[%clk 0:00:05]} 54. c5 {[%clk 0:00:28]}  Ng5+ {[%clk 0:00:05]} 55. Kf5 {[%clk 0:00:29]}  Nxh3 {[%clk 0:00:06]} 56. e6+ {[%clk 0:00:28]}  Kg8 {[%clk 0:00:06]} 57. e7 {[%clk 0:00:29]} 1-0


[Site "https://www.chess.com"]

[Event "Titled Tuesday Blitz May 11 2021"]
[White "Artemiev, Vladislav"]
[Black "Oparin, Grigoriy"]
[WhiteFideId "24101605"]
[BlackFideId "24125890"]
[WhiteElo "2783"]
[BlackElo "2628"]
[Result "1-0"]
[Round "10"]
[TimeControl "180+1"]
[Date "2021.05.11"]
[WhiteClock "0:00:03"]
[BlackClock "0:00:02"]

1. Nf3 {[%clk 0:02:59]}  Nf6 {[%clk 0:03:00]} 2. b3 {[%clk 0:02:59]}  d5 {[%clk 0:03:00]} 3. Bb2 {[%clk 0:02:58]}  e6 {[%clk 0:03:00]} 4. e3 {[%clk 0:02:58]}  Bd6 {[%clk 0:03:00]} 5. c4 {[%clk 0:02:58]}  O-O {[%clk 0:03:00]} 6. Nc3 {[%clk 0:02:58]}  Re8 {[%clk 0:03:01]} 7. Be2 {[%clk 0:02:50]}  c5 {[%clk 0:02:59]} 8. cxd5 {[%clk 0:02:49]}  exd5 {[%clk 0:03:00]} 9. d4 {[%clk 0:02:48]}  cxd4 {[%clk 0:02:56]} 10. Nxd4 {[%clk 0:02:45]}  Nc6 {[%clk 0:02:57]} 11. O-O {[%clk 0:02:42]}  Nxd4 {[%clk 0:02:45]} 12. Qxd4 {[%clk 0:02:41]}  Be5 {[%clk 0:02:45]} 13. Qd3 {[%clk 0:01:40]}  Ne4 {[%clk 0:01:56]} 14. Nxe4 {[%clk 0:01:13]}  Bxb2 {[%clk 0:01:55]} 15. Rad1 {[%clk 0:01:14]}  Bf5 {[%clk 0:01:50]} 16. Qd2 {[%clk 0:01:14]}  dxe4 {[%clk 0:01:40]} 17. Qxb2 {[%clk 0:01:14]}  Qg5 {[%clk 0:01:41]} 18. Rd5 {[%clk 0:01:07]}  Qg6 {[%clk 0:01:27]} 19. h4 {[%clk 0:01:04]}  Be6 {[%clk 0:01:12]} 20. Rg5 {[%clk 0:01:01]}  Qh6 {[%clk 0:01:12]} 21. Rh5 {[%clk 0:00:46]}  Qg6 {[%clk 0:01:12]} 22. Rg5 {[%clk 0:00:37]}  Qh6 {[%clk 0:01:12]} 23. Rd1 {[%clk 0:00:33]}  Rad8 {[%clk 0:01:08]} 24. Rxd8 {[%clk 0:00:29]}  Rxd8 {[%clk 0:01:09]} 25. Qe5 {[%clk 0:00:28]}  Kh8 {[%clk 0:00:35]} 26. Qxe4 {[%clk 0:00:25]}  Qf6 {[%clk 0:00:35]} 27. Qe5 {[%clk 0:00:16]}  h6 {[%clk 0:00:26]} 28. Qxf6 {[%clk 0:00:15]}  gxf6 {[%clk 0:00:27]} 29. Ra5 {[%clk 0:00:15]}  a6 {[%clk 0:00:21]} 30. Bf3 {[%clk 0:00:16]}  Rd7 {[%clk 0:00:20]} 31. Kf1 {[%clk 0:00:14]}  Rc7 {[%clk 0:00:21]} 32. Ke1 {[%clk 0:00:13]}  Kg7 {[%clk 0:00:15]} 33. Ra4 {[%clk 0:00:13]}  f5 {[%clk 0:00:13]} 34. Kd2 {[%clk 0:00:11]}  Kf6 {[%clk 0:00:14]} 35. Rd4 {[%clk 0:00:09]}  Ke7 {[%clk 0:00:14]} 36. g3 {[%clk 0:00:08]}  a5 {[%clk 0:00:15]} 37. Bd5 {[%clk 0:00:07]}  b6 {[%clk 0:00:14]} 38. Bc4 {[%clk 0:00:07]}  Rc5 {[%clk 0:00:12]} 39. a4 {[%clk 0:00:07]}  Rc8 {[%clk 0:00:12]} 40. Kd3 {[%clk 0:00:07]}  Rc7 {[%clk 0:00:12]} 41. e4 {[%clk 0:00:07]}  Kf6 {[%clk 0:00:05]} 42. Rd6 {[%clk 0:00:07]}  Ke5 {[%clk 0:00:04]} 43. Rxb6 {[%clk 0:00:07]}  fxe4+ {[%clk 0:00:05]} 44. Kc3 {[%clk 0:00:07]}  Bxc4 {[%clk 0:00:03]} 45. bxc4 {[%clk 0:00:08]}  Rd7 {[%clk 0:00:04]} 46. Rb5+ {[%clk 0:00:09]}  Ke6 {[%clk 0:00:05]} 47. c5 {[%clk 0:00:07]}  Rd3+ {[%clk 0:00:04]} 48. Kc4 {[%clk 0:00:07]}  Rd2 {[%clk 0:00:05]} 49. Rxa5 {[%clk 0:00:04]}  Rxf2 {[%clk 0:00:05]} 50. Kd4 {[%clk 0:00:05]}  f5 {[%clk 0:00:03]} 51. Ra6+ {[%clk 0:00:05]}  Kd7 {[%clk 0:00:04]} 52. Rxh6 {[%clk 0:00:05]}  Rf3 {[%clk 0:00:03]} 53. Rf6 {[%clk 0:00:03]}  Rd3+ {[%clk 0:00:02]} 54. Kc4 {[%clk 0:00:03]}  Rxg3 {[%clk 0:00:02]} 55. Rxf5 {[%clk 0:00:03]}  Rg4 {[%clk 0:00:03]} 56. Kd5 {[%clk 0:00:02]}  Rxh4 {[%clk 0:00:02]} 57. c6+ {[%clk 0:00:03]} 1-0


[Site "https://www.chess.com"]

[Event "Titled Tuesday Blitz May 11 2021"]
[White "Dubov, Daniil"]
[Black "Jobava, Baadur"]
[WhiteFideId "24126055"]
[BlackFideId "13601520"]
[WhiteElo "2722"]
[BlackElo "2748"]
[Result "1/2-1/2"]
[Round "10"]
[TimeControl "180+1"]
[Date "2021.05.11"]
[WhiteClock "0:00:10"]
[BlackClock "0:00:14"]

1. d4 {[%clk 0:03:00]}  Nf6 {[%clk 0:02:56]} 2. c4 {[%clk 0:03:00]}  g6 {[%clk 0:02:55]} 3. Nc3 {[%clk 0:03:00]}  Bg7 {[%clk 0:02:56]} 4. Nf3 {[%clk 0:03:00]}  d6 {[%clk 0:02:55]} 5. Bg5 {[%clk 0:02:59]}  Na6 {[%clk 0:02:48]} 6. e3 {[%clk 0:02:57]}  O-O {[%clk 0:02:45]} 7. Be2 {[%clk 0:02:56]}  c6 {[%clk 0:02:43]} 8. O-O {[%clk 0:02:56]}  Nc7 {[%clk 0:02:38]} 9. Bh4 {[%clk 0:02:53]}  Qe8 {[%clk 0:02:34]} 10. Nd2 {[%clk 0:02:47]}  Nd7 {[%clk 0:02:28]} 11. Rc1 {[%clk 0:02:40]}  h6 {[%clk 0:02:23]} 12. b4 {[%clk 0:02:37]}  f5 {[%clk 0:02:20]} 13. Bg3 {[%clk 0:02:24]}  e5 {[%clk 0:02:16]} 14. dxe5 {[%clk 0:02:16]}  dxe5 {[%clk 0:02:15]} 15. h3 {[%clk 0:01:28]}  g5 {[%clk 0:01:56]} 16. c5 {[%clk 0:01:21]}  f4 {[%clk 0:01:56]} 17. Bh2 {[%clk 0:01:20]}  Nf6 {[%clk 0:01:49]} 18. Nc4 {[%clk 0:01:14]}  Be6 {[%clk 0:01:31]} 19. Nd6 {[%clk 0:01:12]}  Qe7 {[%clk 0:01:26]} 20. exf4 {[%clk 0:01:00]}  exf4 {[%clk 0:01:21]} 21. Re1 {[%clk 0:00:58]}  Rad8 {[%clk 0:01:17]} 22. Bc4 {[%clk 0:00:55]}  Nfd5 {[%clk 0:01:07]} 23. Nxd5 {[%clk 0:00:47]}  cxd5 {[%clk 0:01:08]} 24. Bb3 {[%clk 0:00:44]}  b6 {[%clk 0:00:54]} 25. Qd3 {[%clk 0:00:43]}  bxc5 {[%clk 0:00:44]} 26. bxc5 {[%clk 0:00:44]}  Bf6 {[%clk 0:00:30]} 27. Re2 {[%clk 0:00:33]}  Qh7 {[%clk 0:00:24]} 28. Qxh7+ {[%clk 0:00:23]}  Kxh7 {[%clk 0:00:24]} 29. Rce1 {[%clk 0:00:23]}  Bd7 {[%clk 0:00:22]} 30. Kh1 {[%clk 0:00:20]}  Nb5 {[%clk 0:00:20]} 31. Bxd5 {[%clk 0:00:13]}  Nc3 {[%clk 0:00:20]} 32. Rd2 {[%clk 0:00:08]}  Nxd5 {[%clk 0:00:20]} 33. Rxd5 {[%clk 0:00:09]}  Bc6 {[%clk 0:00:21]} 34. Rdd1 {[%clk 0:00:08]}  Rb8 {[%clk 0:00:17]} 35. f3 {[%clk 0:00:07]}  Rb2 {[%clk 0:00:17]} 36. Bg1 {[%clk 0:00:07]}  Rxa2 {[%clk 0:00:17]} 37. Ne4 {[%clk 0:00:07]}  Bg7 {[%clk 0:00:16]} 38. Rd6 {[%clk 0:00:06]}  Rc8 {[%clk 0:00:16]} 39. Nf6+ {[%clk 0:00:06]}  Kh8 {[%clk 0:00:15]} 40. Re7 {[%clk 0:00:05]}  Ra1 {[%clk 0:00:11]} 41. Kh2 {[%clk 0:00:05]}  Ra2 {[%clk 0:00:12]} 42. Bd4 {[%clk 0:00:05]}  Bxf3 {[%clk 0:00:11]} 43. Kg1 {[%clk 0:00:05]}  Rxg2+ {[%clk 0:00:11]} 44. Kf1 {[%clk 0:00:06]}  Rb8 {[%clk 0:00:11]} 45. Re1 {[%clk 0:00:02]}  Rh2 {[%clk 0:00:11]} 46. Kg1 {[%clk 0:00:01]}  Rh1+ {[%clk 0:00:11]} 47. Kf2 {[%clk 0:00:02]}  Rxe1 {[%clk 0:00:11]} 48. Kxe1 {[%clk 0:00:02]}  Rc8 {[%clk 0:00:11]} 49. Kd2 {[%clk 0:00:03]}  Bc6 {[%clk 0:00:11]} 50. Kc3 {[%clk 0:00:03]}  f3 {[%clk 0:00:11]} 51. Ng4 {[%clk 0:00:02]}  Bxd4+ {[%clk 0:00:10]} 52. Kxd4 {[%clk 0:00:03]}  h5 {[%clk 0:00:10]} 53. Rh6+ {[%clk 0:00:03]}  Kg7 {[%clk 0:00:10]} 54. Rxh5 {[%clk 0:00:04]}  Kg6 {[%clk 0:00:09]} 55. Rh6+ {[%clk 0:00:04]}  Kg7 {[%clk 0:00:09]} 56. Rh5 {[%clk 0:00:04]}  Rd8+ {[%clk 0:00:10]} 57. Ke3 {[%clk 0:00:04]}  Rd5 {[%clk 0:00:11]} 58. Kxf3 {[%clk 0:00:03]}  Rxc5+ {[%clk 0:00:11]} 59. Ke3 {[%clk 0:00:03]}  a5 {[%clk 0:00:12]} 60. Rh6 {[%clk 0:00:02]}  a4 {[%clk 0:00:11]} 61. Kd4 {[%clk 0:00:03]}  Rc1 {[%clk 0:00:09]} 62. Rh5 {[%clk 0:00:03]}  Kg6 {[%clk 0:00:08]} 63. Rh6+ {[%clk 0:00:03]}  Kf7 {[%clk 0:00:08]} 64. Rxc6 {[%clk 0:00:02]}  Rxc6 {[%clk 0:00:07]} 65. Ne5+ {[%clk 0:00:03]}  Kf6 {[%clk 0:00:07]} 66. Nxc6 {[%clk 0:00:04]}  Kf5 {[%clk 0:00:08]} 67. Ke3 {[%clk 0:00:04]}  a3 {[%clk 0:00:08]} 68. Nb4 {[%clk 0:00:03]}  g4 {[%clk 0:00:09]} 69. h4 {[%clk 0:00:04]}  g3 {[%clk 0:00:09]} 70. Kf3 {[%clk 0:00:04]}  g2 {[%clk 0:00:10]} 71. Kxg2 {[%clk 0:00:04]}  Kg4 {[%clk 0:00:10]} 72. Na2 {[%clk 0:00:05]}  Kxh4 {[%clk 0:00:10]} 73. Kf3 {[%clk 0:00:05]}  Kg5 {[%clk 0:00:10]} 74. Ke4 {[%clk 0:00:06]}  Kf6 {[%clk 0:00:11]} 75. Kd4 {[%clk 0:00:07]}  Ke7 {[%clk 0:00:12]} 76. Kc4 {[%clk 0:00:08]}  Kd8 {[%clk 0:00:13]} 77. Kb3 {[%clk 0:00:09]}  Ke8 {[%clk 0:00:14]} 78. Kxa3 {[%clk 0:00:10]} 1/2-1/2


[Site "https://www.chess.com"]

[Event "Titled Tuesday Blitz May 11 2021"]
[White "Firat, Burak"]
[Black "Tari, Aryan"]
[WhiteFideId "6305881"]
[BlackFideId "1510045"]
[WhiteElo "2531"]
[BlackElo "2656"]
[Result "0-1"]
[Round "10"]
[TimeControl "180+1"]
[Date "2021.05.11"]
[WhiteClock "0:00:04"]
[BlackClock "0:00:10"]

1. e4 {[%clk 0:03:00]}  c5 {[%clk 0:02:58]} 2. Nf3 {[%clk 0:03:01]}  e6 {[%clk 0:02:47]} 3. d4 {[%clk 0:02:59]}  cxd4 {[%clk 0:02:45]} 4. Nxd4 {[%clk 0:03:00]}  Nf6 {[%clk 0:02:46]} 5. Nc3 {[%clk 0:03:01]}  Nc6 {[%clk 0:02:46]} 6. Nxc6 {[%clk 0:03:01]}  bxc6 {[%clk 0:02:46]} 7. e5 {[%clk 0:03:02]}  Nd5 {[%clk 0:02:46]} 8. Ne4 {[%clk 0:03:02]}  Qc7 {[%clk 0:02:43]} 9. f4 {[%clk 0:03:02]}  Qb6 {[%clk 0:02:41]} 10. c4 {[%clk 0:03:03]}  Bb4+ {[%clk 0:02:25]} 11. Ke2 {[%clk 0:03:02]}  f5 {[%clk 0:01:54]} 12. Nf2 {[%clk 0:03:01]}  Ba6 {[%clk 0:01:47]} 13. Kf3 {[%clk 0:03:00]}  Ne7 {[%clk 0:01:47]} 14. Be3 {[%clk 0:03:00]}  Bc5 {[%clk 0:01:46]} 15. Bxc5 {[%clk 0:03:01]}  Qxc5 {[%clk 0:01:46]} 16. Qd6 {[%clk 0:03:00]}  Qa5 {[%clk 0:01:42]} 17. h4 {[%clk 0:02:45]}  c5 {[%clk 0:01:34]} 18. Kg3 {[%clk 0:02:26]}  Rd8 {[%clk 0:01:28]} 19. Nd3 {[%clk 0:02:05]}  Rc8 {[%clk 0:01:24]} 20. Nf2 {[%clk 0:01:47]}  Kf7 {[%clk 0:01:20]} 21. Be2 {[%clk 0:01:37]}  Rhd8 {[%clk 0:01:20]} 22. Bh5+ {[%clk 0:01:36]}  g6 {[%clk 0:01:15]} 23. Bf3 {[%clk 0:01:36]}  h6 {[%clk 0:01:11]} 24. b3 {[%clk 0:01:30]}  Rc6 {[%clk 0:01:07]} 25. Qd3 {[%clk 0:01:19]}  d5 {[%clk 0:01:08]} 26. exd6 {[%clk 0:00:59]}  Rcxd6 {[%clk 0:01:07]} 27. Qe3 {[%clk 0:00:58]}  Qd2 {[%clk 0:00:59]} 28. Rae1 {[%clk 0:00:56]}  Qxe3 {[%clk 0:00:55]} 29. Rxe3 {[%clk 0:00:56]}  Kf6 {[%clk 0:00:56]} 30. Rhe1 {[%clk 0:00:53]}  Bc8 {[%clk 0:00:52]} 31. Kh2 {[%clk 0:00:44]}  Rd2 {[%clk 0:00:49]} 32. R1e2 {[%clk 0:00:41]}  g5 {[%clk 0:00:45]} 33. fxg5+ {[%clk 0:00:30]}  hxg5 {[%clk 0:00:46]} 34. hxg5+ {[%clk 0:00:31]}  Kxg5 {[%clk 0:00:47]} 35. Nh3+ {[%clk 0:00:31]}  Kf6 {[%clk 0:00:46]} 36. Nf4 {[%clk 0:00:29]}  R8d4 {[%clk 0:00:42]} 37. Rxe6+ {[%clk 0:00:11]}  Bxe6 {[%clk 0:00:41]} 38. Rxe6+ {[%clk 0:00:12]}  Kf7 {[%clk 0:00:41]} 39. Bh5+ {[%clk 0:00:13]}  Kf8 {[%clk 0:00:40]} 40. Kg3 {[%clk 0:00:13]}  Rd6 {[%clk 0:00:28]} 41. Re5 {[%clk 0:00:13]}  Rxa2 {[%clk 0:00:24]} 42. Rxc5 {[%clk 0:00:12]}  Rb2 {[%clk 0:00:20]} 43. Rb5 {[%clk 0:00:11]}  Rb6 {[%clk 0:00:18]} 44. Re5 {[%clk 0:00:08]}  R2xb3+ {[%clk 0:00:17]} 45. Kh4 {[%clk 0:00:08]}  Rc3 {[%clk 0:00:12]} 46. c5 {[%clk 0:00:08]}  Rc6 {[%clk 0:00:09]} 47. Ne6+ {[%clk 0:00:07]}  Kg8 {[%clk 0:00:10]} 48. Nd4 {[%clk 0:00:07]}  Rc7 {[%clk 0:00:08]} 49. c6 {[%clk 0:00:04]}  Nxc6 {[%clk 0:00:07]} 50. Re8+ {[%clk 0:00:04]}  Kh7 {[%clk 0:00:07]} 51. Nxf5 {[%clk 0:00:04]}  Rc5 {[%clk 0:00:06]} 52. g4 {[%clk 0:00:04]}  Ne5 {[%clk 0:00:05]} 53. Re6 {[%clk 0:00:03]}  Nf3+ {[%clk 0:00:05]} 54. Kg3 {[%clk 0:00:03]}  Rc3 {[%clk 0:00:04]} 55. Rh6+ {[%clk 0:00:04]}  Kg8 {[%clk 0:00:04]} 56. Rg6+ {[%clk 0:00:05]}  Kf8 {[%clk 0:00:04]} 57. Rh6 {[%clk 0:00:04]}  Ne5+ {[%clk 0:00:04]} 58. Kh4 {[%clk 0:00:05]}  Nf3+ {[%clk 0:00:04]} 59. Kg3 {[%clk 0:00:05]}  Ng5+ {[%clk 0:00:04]} 60. Kf4 {[%clk 0:00:05]}  Nf7 {[%clk 0:00:03]} 61. Rf6 {[%clk 0:00:04]}  R7c4+ {[%clk 0:00:03]} 62. Nd4 {[%clk 0:00:04]}  Rxd4+ {[%clk 0:00:04]} 63. Kf5 {[%clk 0:00:05]}  Rf3+ {[%clk 0:00:03]} 64. Ke6 {[%clk 0:00:05]}  Rxf6+ {[%clk 0:00:04]} 65. Kxf6 {[%clk 0:00:06]}  Rf4+ {[%clk 0:00:04]} 66. Ke6 {[%clk 0:00:05]}  Rf2 {[%clk 0:00:04]} 67. Kd5 {[%clk 0:00:04]}  Kg7 {[%clk 0:00:05]} 68. Kc6 {[%clk 0:00:05]}  Ng5 {[%clk 0:00:05]} 69. Kb5 {[%clk 0:00:06]}  Ra2 {[%clk 0:00:05]} 70. Be8 {[%clk 0:00:06]}  a5 {[%clk 0:00:05]} 71. Bc6 {[%clk 0:00:06]}  Rf2 {[%clk 0:00:05]} 72. Bd5 {[%clk 0:00:07]}  Rf4 {[%clk 0:00:05]} 73. Kxa5 {[%clk 0:00:07]}  Rxg4 {[%clk 0:00:06]} 74. Bb7 {[%clk 0:00:08]}  Kf6 {[%clk 0:00:07]} 75. Kb6 {[%clk 0:00:09]}  Rf4 {[%clk 0:00:07]} 76. Kc7 {[%clk 0:00:09]}  Ke5 {[%clk 0:00:08]} 77. Bc6 {[%clk 0:00:10]}  Ne4 {[%clk 0:00:09]} 78. Bb7 {[%clk 0:00:11]}  Nf6 {[%clk 0:00:10]} 79. Kb6 {[%clk 0:00:10]}  Nd5+ {[%clk 0:00:11]} 80. Kc5 {[%clk 0:00:09]}  Nc7 {[%clk 0:00:11]} 81. Kc6 {[%clk 0:00:10]}  Ne6 {[%clk 0:00:12]} 82. Kb5 {[%clk 0:00:09]}  Rf1 {[%clk 0:00:11]} 83. Bg2 {[%clk 0:00:08]}  Rc1 {[%clk 0:00:10]} 84. Kb4 {[%clk 0:00:08]}  Nd4 {[%clk 0:00:11]} 85. Bh3 {[%clk 0:00:08]}  Rh1 {[%clk 0:00:10]} 86. Bg2 {[%clk 0:00:08]}  Rh2 {[%clk 0:00:10]} 87. Ba8 {[%clk 0:00:09]}  Kd6 {[%clk 0:00:10]} 88. Kc3 {[%clk 0:00:09]}  Nc6 {[%clk 0:00:10]} 89. Bb7 {[%clk 0:00:07]}  Rh3+ {[%clk 0:00:10]} 90. Kb2 {[%clk 0:00:06]}  Nb4 {[%clk 0:00:07]} 91. Bc8 {[%clk 0:00:06]}  Rg3 {[%clk 0:00:07]} 92. Bf5 {[%clk 0:00:06]}  Kc5 {[%clk 0:00:07]} 93. Kc1 {[%clk 0:00:05]}  Nc6 {[%clk 0:00:08]} 94. Kd2 {[%clk 0:00:04]}  Nd4 {[%clk 0:00:08]} 95. Be4 {[%clk 0:00:04]}  Kc4 {[%clk 0:00:09]} 96. Bh7 {[%clk 0:00:03]}  Rg2+ {[%clk 0:00:09]} 97. Ke3 {[%clk 0:00:04]}  Re2+ {[%clk 0:00:08]} 98. Kf4 {[%clk 0:00:03]}  Re7 {[%clk 0:00:09]} 99. Bg8+ {[%clk 0:00:03]}  Kd3 {[%clk 0:00:09]} 100. Bd5 {[%clk 0:00:02]}  Ne6+ {[%clk 0:00:08]} 101. Ke5 {[%clk 0:00:02]}  Nc7+ {[%clk 0:00:08]} 102. Kd6 {[%clk 0:00:03]}  Nxd5 {[%clk 0:00:09]} 103. Kxd5 {[%clk 0:00:03]}  Re4 {[%clk 0:00:09]} 104. Kc6 {[%clk 0:00:04]}  Kd4 {[%clk 0:00:10]} 0-1


[Site "https://www.chess.com"]

[Event "Titled Tuesday Blitz May 11 2021"]
[White "Gokerkan, Cem Kaan"]
[Black "Ivic, Velimir"]
[WhiteFideId "6336760"]
[BlackFideId "950122"]
[WhiteElo "2361"]
[BlackElo "2509"]
[Result "1-0"]
[Round "10"]
[TimeControl "180+1"]
[Date "2021.05.11"]
[WhiteClock "0:00:45"]
[BlackClock "0:00:06"]

1. e4 {[%clk 0:03:00]}  e5 {[%clk 0:02:58]} 2. Nf3 {[%clk 0:03:00]}  d6 {[%clk 0:02:59]} 3. d4 {[%clk 0:03:00]}  exd4 {[%clk 0:03:00]} 4. Nxd4 {[%clk 0:03:01]}  Nf6 {[%clk 0:03:00]} 5. Nc3 {[%clk 0:03:01]}  Be7 {[%clk 0:03:01]} 6. Be2 {[%clk 0:02:52]}  O-O {[%clk 0:03:00]} 7. O-O {[%clk 0:02:52]}  Re8 {[%clk 0:03:00]} 8. Be3 {[%clk 0:02:45]}  Bf8 {[%clk 0:03:00]} 9. f3 {[%clk 0:02:19]}  d5 {[%clk 0:02:57]} 10. Bg5 {[%clk 0:02:19]}  h6 {[%clk 0:02:56]} 11. Bxf6 {[%clk 0:02:18]}  Qxf6 {[%clk 0:02:57]} 12. Nxd5 {[%clk 0:02:17]}  Qd8 {[%clk 0:02:57]} 13. Kh1 {[%clk 0:02:12]}  Bd6 {[%clk 0:02:51]} 14. Nb5 {[%clk 0:02:04]}  Be5 {[%clk 0:02:30]} 15. f4 {[%clk 0:02:03]}  c6 {[%clk 0:02:27]} 16. fxe5 {[%clk 0:02:00]}  cxb5 {[%clk 0:02:26]} 17. Bxb5 {[%clk 0:01:57]}  Nc6 {[%clk 0:02:27]} 18. Bxc6 {[%clk 0:01:47]}  bxc6 {[%clk 0:02:28]} 19. Ne3 {[%clk 0:01:46]}  Ba6 {[%clk 0:02:18]} 20. Qxd8 {[%clk 0:01:42]}  Raxd8 {[%clk 0:02:17]} 21. Rfd1 {[%clk 0:01:43]}  Rxd1+ {[%clk 0:02:16]} 22. Rxd1 {[%clk 0:01:43]}  Rxe5 {[%clk 0:02:17]} 23. Rd4 {[%clk 0:01:44]}  c5 {[%clk 0:02:14]} 24. Ra4 {[%clk 0:01:39]}  Bb5 {[%clk 0:02:00]} 25. Rxa7 {[%clk 0:01:38]}  Rxe4 {[%clk 0:02:00]} 26. Ra3 {[%clk 0:01:39]}  f5 {[%clk 0:01:51]} 27. g3 {[%clk 0:01:31]}  Bc6 {[%clk 0:01:22]} 28. Kg1 {[%clk 0:01:31]}  g5 {[%clk 0:00:58]} 29. Nxf5 {[%clk 0:01:24]}  Re2 {[%clk 0:00:58]} 30. Re3 {[%clk 0:01:23]}  Rg2+ {[%clk 0:00:57]} 31. Kf1 {[%clk 0:01:23]}  Kf8 {[%clk 0:00:36]} 32. Re2 {[%clk 0:01:15]}  Rxe2 {[%clk 0:00:20]} 33. Kxe2 {[%clk 0:01:15]}  Be4 {[%clk 0:00:21]} 34. Nxh6 {[%clk 0:01:14]}  Bxc2 {[%clk 0:00:20]} 35. Ke3 {[%clk 0:01:11]}  Ke7 {[%clk 0:00:18]} 36. Ng4 {[%clk 0:01:11]}  Ke6 {[%clk 0:00:18]} 37. Nf2 {[%clk 0:01:11]}  Bb1 {[%clk 0:00:18]} 38. a4 {[%clk 0:01:10]}  Kd5 {[%clk 0:00:18]} 39. a5 {[%clk 0:01:03]}  Kc6 {[%clk 0:00:18]} 40. Nh3 {[%clk 0:00:58]}  g4 {[%clk 0:00:18]} 41. Nf2 {[%clk 0:00:59]}  Kb5 {[%clk 0:00:15]} 42. Nxg4 {[%clk 0:00:58]}  Kxa5 {[%clk 0:00:15]} 43. h4 {[%clk 0:00:54]}  Kb4 {[%clk 0:00:15]} 44. Kd2 {[%clk 0:00:53]}  Kc4 {[%clk 0:00:15]} 45. Ne3+ {[%clk 0:00:50]}  Kd4 {[%clk 0:00:14]} 46. Nc2+ {[%clk 0:00:50]}  Ke5 {[%clk 0:00:14]} 47. b3 {[%clk 0:00:46]}  Kf5 {[%clk 0:00:09]} 48. Kc1 {[%clk 0:00:45]}  Ba2 {[%clk 0:00:06]} 49. Kb2 {[%clk 0:00:45]} 1-0


[Site "https://www.chess.com"]